bitfinex-derivatives/quotes_BNBF0:USTF0_20250126
["timestamp","ask_amount","ask_price","bid_price","bid_amount"]
[1737913080324,0.915,684.29,683.65,1.09328875]
[1737913082229,0.915,684.29,683.66,0.26863538]
[1737913083024,0.915,684.29,683.66,1.36192413]
[1737913083224,0.915,684.29,683.67,0.26863538]
[1737913086133,0.915,684.29,683.75,1.09328875]
[1737913086335,0.915,684.29,683.76,0.26863538]
[1737913086534,0.915,684.29,683.75,1.09328875]
[1737913089239,0.915,684.29,683.42,0.29264581]
[1737913089240,0.915,684.29,683.74,1.09328875]
[1737913089433,0.915,684.29,683.75,0.26863425]
[1737913090633,0.915,684.29,683.74,1.09328875]
[1737913090830,0.915,684.29,683.75,0.26863257]
[1737913091131,0.915,684.29,683.74,1.09328875]
[1737913092739,0.915,684.29,675.62,8.74429812]
[1737913092740,0.915,684.29,683.75,1.09328875]
[1737913096334,0.915,684.29,683.7,1.09328875]
[1737913099041,0.915,684.29,683.45,1.09328875]
[1737913099042,0.915,684.29,683.69,1.09328875]
[1737913102549,0.915,684.29,683.63,1.09328875]
[1737913102742,0.915,684.29,683.64,0.26861696]
[1737913102948,0.915,684.29,683.65,0.26861387]
[1737913103148,0.915,684.29,683.64,0.26861387]
[1737913103346,0.915,684.29,683.63,1.09328875]
[1737913103548,0.915,684.29,683.64,0.26861361]
[1737913105351,0.915,684.29,683.63,1.09328875]
[1737913105649,0.915,684.29,683.64,0.26861364]
[1737913105851,0.915,684.29,683.68,1.09328875]
[1737913108951,0.915,684.29,683.31,1.09328875]
[1737913108952,0.915,684.29,683.67,1.09328875]
[1737913110451,0.915,684.29,683.68,0.26861356]
[1737913112056,0.915,684.29,683.78,1.09328875]
[1737913113151,0.915,684.29,683.79,0.26861318]
[1737913116153,0.915,684.29,683.8,0.26861501]
[1737913116353,0.915,684.29,683.79,0.26861776]
[1737913116553,0.915,684.29,683.78,1.09328875]
[1737913116752,0.915,684.29,683.79,0.26861846]
[1737913117257,0.915,684.29,683.79,1.09328875]
[1737913121262,0.915,684.29,683.67,1.09328875]
[1737913127060,0.915,684.29,683.68,0.26861684]
[1737913127464,0.915,684.29,683.67,1.09328875]
[1737913128868,0.915,684.29,683.71,1.09328875]
[1737913133170,0.915,684.29,683.66,1.09328875]
[1737913137375,0.915,684.29,683.67,0.26861888]
[1737913139477,0.915,684.29,683.68,0.26861188]
[1737913139675,0.915,684.29,683.67,0.26861188]
[1737913139877,0.915,684.29,683.74,1.09328875]
[1737913142881,0.915,684.29,683.77,1.09328875]
[1737913146685,0.915,684.29,683.79,1.09328875]
[1737913154085,0.915,684.29,683.78,1.09328875]
[1737913157292,0.915,684.29,683.74,1.09328875]
[1737913163496,0.915,684.29,683.63,1.09328875]
[1737913164497,0.915,684.29,683.64,0.26858526]
[1737913166495,0.915,684.29,683.63,1.09328875]
[1737913168098,0.915,684.29,683.66,1.09328875]
[1737913171001,0.915,684.29,683.67,0.26858848]
[1737913172495,0.915,684.29,683.65,0.26858848]
[1737913172699,0.915,684.29,683.66,0.26858848]
[1737913172899,0.915,684.29,683.67,0.26858848]
[1737913173099,0.915,684.29,683.68,0.26858848]
[1737913173402,0.915,684.29,683.69,0.26858848]
[1737913173596,0.915,684.29,683.65,0.26858848]
[1737913174900,0.915,684.29,683.64,1.09328875]
[1737913175099,0.915,684.29,683.65,0.26858896]
[1737913175500,0.915,684.29,683.75,1.09328875]
[1737913175696,0.915,684.29,683.76,0.26858896]
[1737913175897,0.915,684.29,683.75,1.09328875]
[1737913180404,0.915,684.29,683.7,1.09328875]
[1737913183507,0.915,684.29,683.71,0.26856151]
[1737913183811,0.915,684.29,683.72,1.09328875]
[1737913184306,0.915,684.29,683.73,0.26856056]
[1737913184704,0.915,684.29,683.72,1.09328875]
[1737913186204,0.915,684.29,683.73,0.26855848]
[1737913186602,0.915,684.29,683.75,1.09328875]
[1737913187009,0.915,684.29,683.76,0.26855848]
[1737913189503,0.915,684.29,683.77,0.26855821]
[1737913189708,0.915,684.29,683.42,0.29264581]
[1737913189709,0.915,684.29,683.81,1.09328875]
[1737913192410,0.915,684.29,683.82,0.2685603]
[1737913193108,0.915,684.29,683.81,1.09328875]
[1737913193412,0.915,684.29,683.79,1.09328875]
[1737913193606,0.915,684.29,683.8,0.2685599]
[1737913194508,0.915,684.29,683.79,1.09328875]
[1737913194804,0.915,684.29,683.8,0.26856092]
[1737913195005,0.915,684.29,683.81,0.26856092]
[1737913195206,0.915,684.29,683.8,0.26856092]
[1737913195409,0.915,684.29,683.81,0.26856092]
[1737913195613,0.915,684.29,683.82,0.26856092]
[1737913195806,0.915,684.29,683.8,0.26856092]
[1737913196007,0.915,684.29,683.81,0.26856092]
[1737913196315,0.915,684.29,683.88,1.09328875]
[1737913200017,0.915,684.29,683.85,1.09328875]
[1737913201717,0.915,684.29,683.86,0.26856515]
[1737913202315,0.915,684.29,683.85,1.09328875]
[1737913202520,0.915,684.29,683.83,1.09328875]
[1737913205424,0.915,684.29,683.78,1.09328875]
[1737913208629,0.915,684.29,683.79,1.09328875]
[1737913211430,0.915,684.29,683.43,0.75832932]
[1737913211431,0.915,684.29,683.8,1.09328875]
[1737913212135,0.915,684.29,683.81,0.26855155]
[1737913215240,0.915,684.29,683.95,1.09328875]
[1737913215736,0.915,684.29,683.96,0.26855414]
[1737913216133,0.915,684.29,683.95,1.09328875]
[1737913216640,0.915,684.29,683.96,0.26854894]
[1737913217940,0.915,684.29,684.0,1.09328875]
[1737913221346,0.915,684.29,683.98,1.09328875]
[1737913221547,0.915,684.29,683.99,0.26854959]
[1737913222246,0.915,684.29,683.98,1.09328875]
[1737913224850,0.915,684.29,683.99,1.09328875]
[1737913226849,1.09434169,685.01,683.99,1.09328875]
[1737913229052,1.09434169,685.04,683.99,1.09328875]
[1737913229250,0.29195801,685.03,683.99,1.09328875]
[1737913231347,0.29195801,685.03,683.92,1.09328875]
[1737913231551,1.18595801,685.03,683.92,1.09328875]
[1737913234353,1.18595801,685.03,683.78,1.09328875]
[1737913236952,1.18595801,685.03,683.73,1.09328875]
[1737913243857,1.18595801,685.03,682.81,0.71450428]
[1737913243858,1.18595801,685.03,683.79,1.09328875]
[1737913247561,1.18595801,685.03,683.77,1.09328875]
[1737913250560,1.18595801,685.03,683.84,1.09328875]
[1737913252662,1.18595801,685.03,683.85,0.2685527]
[1737913254066,1.18595801,685.03,683.84,1.09328875]
[1737913254564,1.18595801,685.03,683.88,1.09328875]
[1737913258567,1.18595801,685.03,683.43,0.75921152]
[1737913258568,1.18595801,685.03,683.76,1.09328875]
[1737913261768,1.18595801,685.03,683.78,1.09328875]
[1737913263365,1.18595801,685.03,683.79,0.26854632]
[1737913264168,1.18595801,685.03,683.79,1.36183507]
[1737913264371,1.18595801,685.03,683.8,0.26854632]
[1737913266465,1.18595801,685.03,683.79,1.09328875]
[1737913266764,1.18595801,685.03,683.8,0.26854524]
[1737913267366,1.18595801,685.03,683.95,1.09328875]
[1737913267563,1.18595801,685.03,683.96,0.26854524]
[1737913270570,2.2802997,685.03,684.0,1.09328875]
[1737913273476,1.09434169,685.0,684.01,1.09328875]
[1737913274976,2.13434169,685.0,684.01,1.09328875]
[1737913277375,1.09434169,684.98,684.03,1.09328875]
[1737913280177,1.09434169,684.99,684.02,1.09328875]
[1737913282276,1.04,685.0,683.96,1.09328875]
[1737913285677,1.04,685.0,683.91,1.09328875]
[1737913289086,1.04,685.0,683.9,1.09328875]
[1737913292187,1.04,685.0,683.93,1.09328875]
[1737913292487,1.04,685.0,683.94,0.26854751]
[1737913294785,1.04,685.0,683.99,1.09328875]
[1737913298192,1.04,685.0,684.01,1.09328875]
[1737913301393,1.04,685.0,683.9,1.09328875]
[1737913305696,1.04,685.0,683.67,1.09328875]
[1737913306093,1.04,685.0,683.68,0.29253451]
[1737913309895,1.04,685.0,683.69,0.26853855]
[1737913311494,1.04,685.0,683.68,0.29253451]
[1737913311797,1.04,685.0,683.69,0.26853554]
[1737913313998,1.04,685.0,683.86,1.09328875]
[1737913316596,1.04,685.0,683.87,1.09328875]
[1737913319200,1.04,685.0,683.88,0.26853833]
[1737913320493,1.04,685.0,683.89,0.26853833]
[1737913320695,1.04,685.0,683.9,0.26853833]
[1737913320895,1.04,685.0,683.82,1.09328875]
[1737913321093,1.04,685.0,683.83,0.26853981]
[1737913322502,1.04,685.0,683.94,1.09328875]
[1737913325502,1.04,685.0,683.95,1.09328875]
[1737913326996,1.04,685.0,683.96,0.2685409]
[1737913328202,1.04,685.0,683.95,1.09328875]
[1737913330810,1.04,685.0,683.97,1.09328875]
[1737913333913,1.04,685.0,683.68,0.29253451]
[1737913333914,1.04,685.0,683.87,1.09328875]
[1737913338217,1.04,685.0,683.88,1.09328875]
[1737913341816,1.04,685.0,683.68,0.29253451]
[1737913341817,1.04,685.0,683.9,1.09328875]
[1737913342219,1.04,685.0,683.91,0.26853915]
[1737913344320,1.04,685.0,683.99,1.09328875]
[1737913348216,1.04,685.0,684.0,1.09328875]
[1737913351022,1.04,685.0,683.85,1.09328875]
[1737913354118,1.04,685.0,683.82,1.09328875]
[1737913356724,1.04,685.0,683.76,1.09328875]
[1737913356924,1.04,685.0,683.76,1.38578904]
[1737913357522,1.04,685.0,683.77,0.26850587]
[1737913358922,1.04,685.0,683.76,1.38578904]
[1737913359125,1.04,685.0,683.84,1.09328875]
[1737913361325,1.04,685.0,683.76,0.29250029]
[1737913361326,1.04,685.0,683.83,1.09328875]
[1737913361723,1.04,685.0,683.84,0.26850665]
[1737913362129,1.04,685.0,683.83,1.09328875]
[1737913362428,1.04,685.0,683.84,0.268508]
[1737913366931,1.04,685.0,683.87,1.09328875]
[1737913367330,1.04,685.0,683.88,0.268508]
[1737913367527,1.04,685.0,683.87,1.09328875]
[1737913367732,1.04,685.0,683.88,0.2685068]
[1737913369035,1.04,685.0,683.89,0.26850599]
[1737913370235,1.04,685.0,683.88,0.26850599]
[1737913370428,1.04,685.0,683.89,0.26850599]
[1737913370633,1.04,685.0,683.9,0.26850599]
[1737913370834,1.04,685.0,683.91,0.26850599]
[1737913371034,1.04,685.0,683.86,1.09328875]
[1737913371435,1.04,685.0,683.87,0.26850687]
[1737913371734,1.04,685.0,683.88,0.26850696]
[1737913372036,1.04,685.0,683.89,0.26850696]
[1737913372236,1.04,685.0,683.86,1.09328875]
[1737913372633,1.04,685.0,683.9,1.09328875]
[1737913374341,1.04,685.0,683.91,0.26850323]
[1737913377943,1.04,685.0,683.9,1.09328875]
[1737913378144,1.04,685.0,683.94,1.09328875]
[1737913380546,1.04,685.0,683.92,1.09328875]
[1737913383647,1.04,685.0,683.97,1.09328875]
[1737913386843,1.04,685.0,683.99,1.09328875]
[1737913390553,1.04,685.0,683.76,0.29250029]
[1737913390554,1.04,685.0,683.96,1.09328875]
[1737913392854,1.04,685.0,683.97,1.09328875]
[1737913397460,1.04,685.0,683.98,0.2685029]
[1737913400559,1.04,685.0,683.97,1.09328875]
[1737913401963,1.04,685.0,684.05,1.09328875]
[1737913405764,1.04,685.0,683.84,1.09328875]
[1737913410665,1.04,685.0,683.85,0.26848758]
[1737913411567,1.04,685.0,683.84,1.09328875]
[1737913411768,1.04,685.0,683.85,0.26848856]
[1737913412470,1.04,685.0,683.85,1.36177731]
[1737913412767,1.04,685.0,683.86,0.26848856]
[1737913415370,1.04,685.0,684.01,1.09328875]
[1737913417564,1.04,685.0,684.02,0.26849338]
[1737913417769,1.04,685.0,684.01,1.09328875]
[1737913418672,1.04,685.0,684.07,1.09328875]
[1737913421769,1.04,685.0,683.98,1.09328875]
[1737913425975,1.04,685.0,683.91,1.09328875]
[1737913431676,1.04,685.0,683.92,0.2684753]
[1737913431877,1.04,685.0,683.93,0.26847474]
[1737913432071,1.04,685.0,683.91,1.09328875]
[1737913432072,1.04,685.0,683.94,0.26847449]
[1737913432274,1.04,685.0,683.95,0.26847449]
[1737913432473,1.04,685.0,683.92,0.26847449]
[1737913432674,1.04,685.0,683.96,1.09328875]
[1737913432874,1.04,685.0,683.97,0.26847449]
[1737913433777,1.04,685.0,683.96,1.09328875]
[1737913433978,1.04,685.0,683.97,0.2684741]
[1737913434480,1.04,685.0,683.96,1.09328875]
[1737913434679,1.04,685.0,683.97,0.2684767]
[1737913434978,1.04,685.0,683.96,1.09328875]
[1737913435581,1.04,685.0,683.97,0.26847605]
[1737913435782,1.04,685.0,684.0,1.09328875]
[1737913437883,1.04,685.0,684.01,1.09328875]
[1737913438083,1.04,685.0,684.02,0.2684755]
[1737913440585,1.04,685.0,684.16,1.09328875]
[1737913440784,1.04,685.0,684.17,0.26847712]
[1737913441582,1.04,685.0,684.16,1.09328875]
[1737913444085,1.04,685.0,684.15,1.09328875]
[1737913447290,1.04,685.0,683.76,0.29250029]
[1737913447291,1.04,685.0,683.85,1.09328875]
[1737913449993,1.02881389,685.0,683.85,1.09328875]
[1737913451394,1.02881389,685.0,683.77,1.09328875]
[1737913451595,1.02881389,685.0,683.78,0.29249173]
[1737913454991,1.02881389,685.0,683.82,1.09328875]
[1737913455195,1.02881389,685.0,683.82,1.38576337]
[1737913458098,1.02881389,685.0,683.83,0.26848862]
[1737913458491,1.02881389,685.0,683.82,0.29247462]
[1737913458899,1.02881389,685.0,683.83,0.26848788]
[1737913459600,1.02881389,685.0,683.82,0.29247462]
[1737913459901,1.02881389,685.0,683.83,0.26848707]
[1737913461200,1.02881389,685.0,683.9,1.09328875]
[1737913462202,1.02881389,685.0,683.91,0.26848525]
[1737913466202,1.02881389,685.0,684.05,1.09328875]
[1737913466701,1.02881389,685.0,684.06,0.26848615]
[1737913467007,1.02881389,685.0,684.05,1.09328875]
[1737913467509,1.02881389,685.0,684.06,0.2684874]
[1737913467704,1.02881389,685.0,684.05,1.09328875]
[1737913469211,1.02881389,685.0,684.09,1.09328875]
[1737913471910,1.02881389,685.0,684.1,0.26848962]
[1737913472217,1.02881389,685.0,684.09,1.09328875]
[1737913473310,1.02881389,685.0,684.1,0.26848922]
[1737913476319,1.02881389,685.0,684.11,0.26848928]
[1737913476618,1.02881389,685.0,684.12,0.26848928]
[1737913476815,1.02881389,685.0,684.1,0.26848928]
[1737913477021,1.02881389,685.0,684.11,0.26848928]
[1737913477221,1.02881389,685.0,684.1,0.26848928]
[1737913477419,1.02881389,685.0,684.11,0.26848928]
[1737913477617,1.02881389,685.0,684.12,0.26848928]
[1737913477821,1.02881389,685.0,684.13,0.26848928]
[1737913478221,1.02881389,685.0,684.14,0.26848928]
[1737913478422,1.02881389,685.0,684.1,0.26848928]
[1737913478721,1.02881389,685.0,684.11,0.26848928]
[1737913478922,1.02881389,685.0,684.12,0.26848928]
[1737913479120,1.02881389,685.0,684.1,0.26848928]
[1737913479422,1.02881389,685.0,684.18,1.09328875]
[1737913482624,1.02881389,685.0,684.2,1.09328875]
[1737913486634,1.02881389,685.0,684.21,1.09328875]
[1737913488028,1.02881389,685.0,684.21,1.08162745]
[1737913489628,1.02881389,685.0,683.94,1.09328875]
[1737913489826,1.02881389,685.0,683.95,0.26847813]
[1737913491930,1.02881389,685.0,683.94,1.09328875]
[1737913492827,1.02881389,685.0,683.95,0.26847938]
[1737913493730,1.02881389,685.0,683.93,0.26847938]
[1737913493929,1.02881389,685.0,683.94,0.26847938]
[1737913494126,1.02881389,685.0,683.93,0.26847938]
[1737913494327,1.02881389,685.0,683.94,0.26847938]
[1737913494530,1.02881389,685.0,683.93,0.26847938]
[1737913494731,1.02881389,685.0,683.94,0.26847938]
[1737913494931,1.02881389,685.0,683.95,0.26847272]
[1737913495131,1.02881389,685.0,683.93,0.26847272]
[1737913495332,1.02881389,685.0,683.94,0.26847272]
[1737913495531,1.02881389,685.0,683.93,0.26847272]
[1737913495731,1.02881389,685.0,683.94,0.26847272]
[1737913495934,1.02881389,685.0,683.95,0.26847272]
[1737913496128,1.02881389,685.0,683.93,0.26847272]
[1737913496333,1.02881389,685.0,683.94,0.26847272]
[1737913496530,1.02881389,685.0,683.93,0.26847272]
[1737913496930,1.02881389,685.0,683.83,0.26847272]
[1737913497134,1.02881389,685.0,683.94,0.26847272]
[1737913498040,1.02881389,685.0,683.95,0.26847272]
[1737913498240,1.02881389,685.0,683.83,0.26847272]
[1737913498441,1.02881389,685.0,683.84,0.26847272]
[1737913498636,1.02881389,685.0,683.85,0.26847272]
[1737913498835,1.02881389,685.0,683.86,0.26847272]
[1737913499039,1.02881389,685.0,683.82,0.29247462]
[1737913499241,1.02881389,685.0,683.83,0.26847322]
[1737913500847,1.02881389,685.0,683.84,0.26847859]
[1737913501043,1.02881389,685.0,683.83,0.26847859]
[1737913506453,1.02881389,685.0,683.93,1.09328875]
[1737913506651,1.02881389,685.0,683.94,0.26848164]
[1737913512158,1.02881389,685.0,683.89,1.09328875]
[1737913512159,1.02881389,685.0,683.95,0.26848164]
[1737913512459,1.02881389,685.0,683.96,0.26848164]
[1737913512652,1.02881389,685.0,683.91,0.26848164]
[1737913512854,1.02881389,685.0,683.92,0.26848164]
[1737913513053,1.02881389,685.0,683.91,0.26848164]
[1737913515362,1.02881389,685.0,683.91,1.36177039]
[1737913515661,1.02881389,685.0,683.92,0.26848164]
[1737913518259,1.02881389,685.0,683.93,0.26848164]
[1737913518566,1.02881389,685.0,683.9,1.09328875]
[1737913518567,1.02881389,685.0,683.94,0.26848164]
[1737913518765,1.02881389,685.0,683.91,0.26848164]
[1737913518964,1.02881389,685.0,683.92,0.26848164]
[1737913519261,1.02881389,685.0,683.91,0.26848164]
[1737913519461,1.02881389,685.0,683.92,0.26848164]
[1737913519662,1.02881389,685.0,683.91,0.26848164]
[1737913519858,1.02881389,685.0,683.92,0.26848164]
[1737913520064,1.02881389,685.0,683.93,0.26848164]
[1737913520264,1.02881389,685.0,683.94,0.26848164]
[1737913520464,1.02881389,685.0,683.95,0.26848164]
[1737913520763,1.02881389,685.0,683.96,0.26848164]
[1737913520965,1.02881389,685.0,683.91,0.26848164]
[1737913521265,1.02881389,685.0,683.92,0.26848164]
[1737913521765,1.02881389,685.0,683.93,0.26848164]
[1737913521958,1.02881389,685.0,683.94,0.26848164]
[1737913522159,1.02881389,685.0,683.95,0.26848164]
[1737913522363,1.02881389,685.0,683.87,0.26848164]
[1737913522560,1.02881389,685.0,683.88,0.26848164]
[1737913522760,1.02881389,685.0,683.87,0.26848164]
[1737913522959,1.02881389,685.0,683.88,0.26848164]
[1737913523159,1.02881389,685.0,683.89,0.26848164]
[1737913523466,1.02881389,685.0,683.9,0.26848164]
[1737913523666,1.02881389,685.0,683.91,0.26848164]
[1737913523966,1.02881389,685.0,683.92,0.26848164]
[1737913524167,1.02881389,685.0,683.86,1.09328875]
[1737913524168,1.02881389,685.0,683.93,0.26848164]
[1737913524369,1.02881389,685.0,683.94,0.26847832]
[1737913524666,1.02881389,685.0,683.95,0.26847832]
[1737913524866,1.02881389,685.0,683.92,0.26847832]
[1737913525062,1.02881389,685.0,683.93,0.26847832]
[1737913525266,1.02881389,685.0,683.94,0.26847832]
[1737913525568,1.02881389,685.0,683.95,0.26847832]
[1737913525765,1.02881389,685.0,683.96,0.26847832]
[1737913525966,1.02881389,685.0,683.91,1.09328875]
[1737913526168,1.02881389,685.0,683.92,0.26848083]
[1737913528073,1.02881389,685.0,683.89,1.09328875]
[1737913528074,1.02881389,685.0,683.93,0.26848083]
[1737913528272,1.02881389,685.0,683.9,0.26848083]
[1737913528467,1.02881389,685.0,683.91,0.26848083]
[1737913528668,1.02881389,685.0,683.92,0.26848083]
[1737913528872,1.02881389,685.0,683.89,1.09328875]
[1737913528873,1.02881389,685.0,683.93,0.26848083]
[1737913529074,1.02881389,685.0,683.94,0.26848083]
[1737913529274,1.02881389,685.0,683.95,0.26848083]
[1737913529475,1.02881389,685.0,683.96,0.26848083]
[1737913529674,1.02881389,685.0,683.9,0.26848083]
[1737913529874,1.02881389,685.0,683.91,0.26848083]
[1737913530076,1.02881389,685.0,683.9,0.26848083]
[1737913530276,1.02881389,685.0,683.91,0.26848083]
[1737913530577,1.02881389,685.0,683.92,0.26848083]
[1737913530777,1.02881389,685.0,683.83,0.26848083]
[1737913532075,1.02881389,685.0,683.84,0.26848083]
[1737913532281,1.02881389,685.0,683.85,0.26847955]
[1737913532477,1.02881389,685.0,683.86,0.26847955]
[1737913532681,1.02881389,685.0,683.87,0.26847955]
[1737913532881,1.02881389,685.0,683.83,0.26847955]
[1737913533082,1.02881389,685.0,683.84,0.26847955]
[1737913533276,1.02881389,685.0,683.85,0.26847955]
[1737913533476,1.02881389,685.0,683.83,0.26847955]
[1737913533683,1.02881389,685.0,683.84,0.26847955]
[1737913533981,1.02881389,685.0,683.85,0.26847955]
[1737913534279,1.02881389,685.0,683.83,0.26847955]
[1737913534483,1.02881389,685.0,683.84,0.26847955]
[1737913534682,1.02881389,685.0,683.85,0.26847955]
[1737913534882,1.02881389,685.0,683.86,0.26847955]
[1737913535080,1.02881389,685.0,683.87,0.26847955]
[1737913535280,1.02881389,685.0,683.88,0.26847955]
[1737913535482,1.02881389,685.0,683.89,0.26847955]
[1737913535682,1.02881389,685.0,683.83,0.26847955]
[1737913535982,1.02881389,685.0,683.84,0.2684785]
[1737913536182,1.02881389,685.0,683.85,0.2684785]
[1737913536381,1.02881389,685.0,683.83,0.2684785]
[1737913536683,1.02881389,685.0,683.84,0.2684785]
[1737913536882,1.02881389,685.0,683.83,0.2684785]
[1737913537085,1.02881389,685.0,683.84,0.2684785]
[1737913537284,1.02881389,685.0,683.83,0.2684785]
[1737913537584,1.02881389,685.0,683.84,0.2684785]
[1737913538077,1.02881389,685.0,683.85,0.29246179]
[1737913538684,1.02881389,685.0,683.86,0.2684785]
[1737913538884,1.02881389,685.0,683.87,0.29245324]
[1737913539182,1.02881389,685.0,683.88,0.2684785]
[1737913539382,1.02881389,685.0,683.89,0.29244469]
[1737913539577,1.02881389,685.0,683.9,0.2684785]
[1737913539782,1.02881389,685.0,683.91,0.29243613]
[1737913539982,1.02881389,685.0,683.92,0.2684785]
[1737913541784,1.02881389,685.0,683.93,0.56084924]
[1737913541986,1.02881389,685.0,683.91,0.29243613]
[1737913541987,1.02881389,685.0,683.94,0.56084497]
[1737913542183,1.02881389,685.0,683.95,0.56084069]
[1737913542485,1.02881389,685.0,683.96,0.56083642]
[1737913542686,1.02881389,685.0,683.97,0.56083214]
[1737913542885,1.02881389,685.0,683.98,0.56082787]
[1737913543085,1.02881389,685.0,683.99,0.56082359]
[1737913543392,1.02881389,685.0,684.0,0.29239766]
[1737913543585,1.02881389,685.0,684.0,0.56082111]
[1737913543784,1.02881389,685.0,684.01,0.26842345]
[1737913544185,1.02881389,685.0,684.01,0.56081683]
[1737913544885,1.02881389,685.0,684.02,0.26842345]
[1737913547487,1.02881389,685.0,684.03,0.26842334]
[1737913547687,1.02881389,685.0,684.04,0.26842334]
[1737913547882,1.02881389,685.0,684.05,0.26842334]
[1737913548086,1.02881389,685.0,684.06,0.26842334]
[1737913548287,1.02881389,685.0,684.02,0.26842334]
[1737913548487,1.02881389,685.0,684.03,0.26842334]
[1737913548684,1.02881389,685.0,684.04,0.26842334]
[1737913548882,1.02881389,685.0,684.05,0.26842334]
[1737913549084,1.02881389,685.0,684.02,0.26842334]
[1737913549284,1.02881389,685.0,684.03,0.26842334]
[1737913549484,1.02881389,685.0,684.02,0.26842334]
[1737913549688,1.02881389,685.0,684.03,0.26842334]
[1737913549988,1.02881389,685.0,684.04,0.26842334]
[1737913550186,1.02881389,685.0,684.02,0.26842334]
[1737913550386,1.02881389,685.0,684.03,0.26842334]
[1737913550581,1.02881389,685.0,684.02,0.26842334]
[1737913550781,1.02881389,685.0,684.03,0.26842334]
[1737913551986,1.02881389,685.0,684.02,0.26842334]
[1737913552188,1.02881389,685.0,684.03,0.26842334]
[1737913552388,1.02881389,685.0,684.04,0.26842334]
[1737913552590,1.02881389,685.0,684.05,0.26842334]
[1737913552890,1.02881389,685.0,684.06,0.26843341]
[1737913553088,1.02881389,685.0,684.02,0.26843341]
[1737913553289,1.02881389,685.0,684.03,0.26843341]
[1737913553593,1.02881389,685.0,684.02,0.26843341]
[1737913553790,1.02881389,685.0,684.01,0.29239338]
[1737913553791,1.02881389,685.0,684.03,0.26843341]
[1737913553990,1.02881389,685.0,684.04,0.26843341]
[1737913554185,1.02881389,685.0,684.02,0.26843341]
[1737913554392,1.02881389,685.0,684.03,0.26843341]
[1737913554691,1.02881389,685.0,684.04,0.26843341]
[1737913554887,1.02881389,685.0,684.02,0.26843341]
[1737913555095,1.02881389,685.0,684.03,0.26843341]
[1737913555294,1.02881389,685.0,684.02,0.26843341]
[1737913555596,1.02881389,685.0,684.03,0.26843341]
[1737913555791,1.02881389,685.0,684.02,0.26843341]
[1737913555995,1.02881389,685.0,684.03,0.26843341]
[1737913556194,1.02881389,685.0,684.02,0.26843341]
[1737913556395,1.02881389,685.0,684.01,0.29239338]
[1737913556396,1.02881389,685.0,684.04,0.26843341]
[1737913556597,1.02881389,685.0,684.05,0.26843341]
[1737913556795,1.02881389,685.0,684.06,0.26843341]
[1737913556997,1.02881389,685.0,684.02,0.26843341]
[1737913557190,1.02881389,685.0,684.03,0.26843341]
[1737913557395,1.02881389,685.0,684.02,0.26843341]
[1737913561198,1.02881389,685.0,684.03,0.26842893]
[1737913561400,1.02881389,685.0,684.02,0.26842893]
[1737913561600,1.02881389,685.0,684.03,0.26842893]
[1737913561900,1.02881389,685.0,684.04,0.26842893]
[1737913562200,1.02881389,685.0,684.01,0.29239338]
[1737913562500,1.02881389,685.0,684.02,0.268427]
[1737913562897,1.02881389,685.0,684.01,0.29239338]
[1737913563095,1.02881389,685.0,684.02,0.26842939]
[1737913567206,1.02881389,685.0,684.01,0.29239338]
[1737913567405,1.02881389,685.0,684.02,0.26841969]
[1737913570610,1.02881389,685.0,684.03,0.26840282]
[1737913571905,1.02881389,685.0,684.02,0.26840282]
[1737913572206,1.02881389,685.0,684.03,0.26840282]
[1737913572406,1.02881389,685.0,684.04,0.26840282]
[1737913572606,1.02881389,685.0,684.02,0.26840282]
[1737913572907,1.02881389,685.0,684.03,0.26840282]
[1737913573206,1.02881389,685.0,684.04,0.26840282]
[1737913573407,1.02881389,685.0,684.05,0.26834099]
[1737913573603,1.02881389,685.0,684.09,1.09328875]
[1737913573807,1.02881389,685.0,684.1,0.26834099]
[1737913574307,1.02881389,685.0,684.11,0.29235064]
[1737913574508,1.02881389,685.0,684.12,0.26834099]
[1737913574705,1.02881389,685.0,684.13,0.29234209]
[1737913581209,1.02881389,685.0,684.14,0.26835598]
[1737913581509,1.02881389,685.0,684.14,0.29233782]
[1737913582713,1.02881389,685.0,684.15,0.26835939]
[1737913588618,1.02881389,685.0,684.14,0.29233782]
[1737913589118,1.02881389,685.0,684.15,0.26834804]
[1737913590120,1.02881389,685.0,684.14,0.29233782]
[1737913590718,1.02881389,685.0,684.15,0.26834444]
[1737913592024,1.02881389,685.0,684.14,0.29233782]
[1737913592823,1.02881389,685.0,684.15,0.26834629]
[1737913594925,1.02881389,685.0,684.16,0.26835167]